bitfinex-derivatives/quotes_BTCF0:USTF0_20250912
["timestamp","ask_amount","ask_price","bid_price","bid_amount"]
[1757709841238,0.98616176,116280.0,116270.0,1.23297346]
[1757709841741,0.98616176,116280.0,116270.0,0.87217346]
[1757709842237,0.18736176,116280.0,116270.0,0.87217346]
[1757709842540,0.98596176,116280.0,116270.0,0.87217346]
[1757709842739,0.98596176,116280.0,116270.0,1.23297346]
[1757709842946,0.98596176,116280.0,116270.0,0.87217346]
[1757709842947,0.18736176,116280.0,116270.0,0.87217346]
[1757709843238,1.01657203,116280.0,116270.0,1.23297346]
[1757709844347,1.01657203,116280.0,116270.0,0.59243]
[1757709844534,1.15644376,116280.0,116270.0,0.87217346]
[1757709847247,1.01657203,116280.0,116270.0,0.87217346]
[1757709847449,1.15644376,116280.0,116270.0,0.87217346]
[1757709848447,1.01657203,116280.0,116270.0,0.77879709]
[1757709849048,1.01657203,116280.0,116270.0,1.13959709]
[1757709849245,1.01657203,116280.0,116270.0,0.59243]
[1757709849444,1.01657203,116280.0,116270.0,0.77879709]
[1757709850145,1.01657203,116280.0,116270.0,1.13959709]
[1757709850847,0.97053417,116280.0,116270.0,1.13959709]
[1757709852047,0.17201417,116280.0,116270.0,1.13959709]
[1757709852251,0.97045417,116280.0,116270.0,1.13959709]
[1757709853049,0.97045417,116280.0,116270.0,0.95323]
[1757709853248,0.97045417,116280.0,116270.0,1.13959709]
[1757709859359,0.9397639,116280.0,116270.0,1.13959709]
[1757709862861,0.97045417,116280.0,116270.0,1.13959709]
[1757709863558,0.97045417,116280.0,116270.0,0.95323]
[1757709863751,0.97045417,116280.0,116270.0,1.13959709]
[1757709867174,0.97045417,116280.0,116270.0,0.77879709]
[1757709867674,0.97045417,116280.0,116270.0,1.13959709]
[1757709867977,0.9397639,116280.0,116270.0,1.13959709]
[1757709868979,0.9397639,116280.0,116270.0,0.95323]
[1757709869172,0.9397639,116280.0,116270.0,1.13959709]
[1757709871877,0.9407639,116280.0,116270.0,1.13959709]
[1757709872969,0.9407639,116280.0,116270.0,0.59243]
[1757709873169,0.9407639,116280.0,116270.0,0.77879709]
[1757709873677,0.9407639,116280.0,116270.0,1.13959709]
[1757709875377,0.1423239,116280.0,116270.0,1.13959709]
[1757709875675,0.9388039,116280.0,116270.0,0.95323]
[1757709875978,0.9388039,116280.0,116270.0,1.13959709]
[1757709876276,0.9378039,116280.0,116270.0,1.13959709]
[1757709876577,0.9388039,116280.0,116270.0,0.95323]
[1757709876774,0.9388039,116280.0,116270.0,0.77879709]
[1757709876969,0.96849417,116280.0,116270.0,0.77879709]
[1757709877579,0.96949417,116280.0,116270.0,0.77879709]
[1757709879172,0.9388039,116280.0,116270.0,0.77879709]
[1757709879380,0.96949417,116280.0,116270.0,0.77879709]
[1757709882082,1.51666126,116280.0,116270.0,0.57]
[1757709882280,1.15586126,116280.0,116270.0,0.57]
[1757709882480,1.51666126,116280.0,116270.0,0.57]
[1757709882680,1.15586126,116280.0,116270.0,0.77834709]
[1757709883074,0.96933417,116280.0,116270.0,0.77834709]
[1757709884175,0.9386439,116280.0,116270.0,0.77834709]
[1757709884382,0.96933417,116280.0,116270.0,0.77834709]
[1757709884577,0.96946914,116280.0,116270.0,0.77834709]
[1757709885981,0.17314914,116280.0,116270.0,0.77834709]
[1757709886182,0.96946914,116280.0,116270.0,0.77834709]
[1757709888888,0.17314914,116280.0,116270.0,0.77834709]
[1757709889085,0.96946914,116280.0,116270.0,0.77834709]
[1757709890081,0.17314914,116280.0,116270.0,0.77834709]
[1757709890287,0.96946914,116280.0,116270.0,0.77834709]
[1757709890887,1.015507,116280.0,116270.0,0.77834709]
[1757709891290,1.015507,116280.0,116270.0,0.59198]
[1757709891489,1.015507,116280.0,116270.0,0.77834709]
[1757709892587,0.96946914,116280.0,116270.0,0.77834709]
[1757709892792,0.96946914,116280.0,116270.0,0.59198]
[1757709892987,0.96946914,116280.0,116270.0,0.77834709]
[1757709893690,0.96946914,116280.0,116270.0,0.59198]
[1757709893891,0.96946914,116280.0,116270.0,0.77834709]
[1757709896291,0.17314914,116280.0,116270.0,0.77834709]
[1757709896490,0.97070914,116280.0,116270.0,0.77834709]
[1757709897491,0.96970914,116280.0,116270.0,0.77834709]
[1757709899182,0.96898914,116280.0,116270.0,0.77834709]
[1757709899591,0.17214914,116280.0,116270.0,0.77834709]
[1757709899793,0.96902914,116280.0,116270.0,0.77834709]
[1757709900396,0.96902914,116280.0,116270.0,0.59198]
[1757709900596,0.97238914,116280.0,116270.0,1.32551418]
[1757709900897,0.94169887,116280.0,116270.0,1.13914709]
[1757709901398,0.94169887,116280.0,116270.0,0.95278]
[1757709901593,0.94169887,116280.0,116270.0,1.13914709]
[1757709902196,0.94169887,116280.0,116270.0,0.77834709]
[1757709902391,1.61484125,116280.0,116270.0,0.57]
[1757709902590,2.02167911,116280.0,116270.0,0.57]
[1757709902791,1.83551202,116280.0,116270.0,0.57]
[1757709904102,1.64914493,116280.0,116270.0,0.57]
[1757709904300,1.83551202,116280.0,116270.0,0.57]
[1757709904599,1.83719202,116280.0,116270.0,0.57]
[1757709905694,1.83717127,116280.0,116270.0,0.57]
[1757709906206,1.29012418,116280.0,116270.0,0.59149]
[1757709906404,1.47649127,116280.0,116270.0,0.57]
[1757709907496,0.03718,116270.0,116260.0,0.56865709]
[1757709907701,0.86730424,116270.0,116260.0,1.36502418]
[1757709908401,0.86730424,116270.0,116260.0,1.2718808]
[1757709908605,0.86730424,116270.0,116260.0,1.4116762]
[1757709909101,0.86730424,116270.0,116260.0,0.99229]
[1757709909292,0.86730424,116270.0,116260.0,1.4116762]
[1757709910094,0.86730424,116270.0,116260.0,1.4126762]
[1757709910294,0.86730424,116270.0,116260.0,1.4136762]
[1757709912003,0.86731177,116270.0,116260.0,1.4136762]
[1757709912205,0.06507177,116270.0,116260.0,1.4136762]
[1757709912410,0.86675177,116270.0,116260.0,1.4136762]
[1757709912704,0.06507177,116270.0,116260.0,1.4136762]
[1757709912999,0.86651177,116270.0,116260.0,0.99429]
[1757709913204,0.86651177,116270.0,116260.0,1.4136762]
[1757709914907,0.86651177,116270.0,116260.0,0.99429]
[1757709915099,0.86651177,116270.0,116260.0,1.4136762]
[1757709915500,0.86651177,116270.0,116260.0,0.99429]
[1757709915702,0.86651177,116270.0,116260.0,1.4136762]
[1757709916613,0.06507177,116270.0,116260.0,0.99429]
[1757709916809,0.02789177,116270.0,116260.0,1.6763362]
[1757709917309,0.02789177,116270.0,116260.0,2.4770562]
[1757709917616,0.02789177,116270.0,116260.0,2.1162562]
[1757709917820,0.02789177,116270.0,116260.0,2.8376962]
[1757709918512,0.02789177,116270.0,116260.0,2.8383762]
[1757709919416,0.07818388,116280.0,116270.0,0.0069]
[1757709919615,0.02790222,116280.0,116270.0,1.4082862]
[1757709920416,0.02790222,116280.0,116270.0,1.6582862]
[1757709920717,0.02790222,116280.0,116270.0,1.7442395]
[1757709920910,0.63241399,116300.0,116290.0,0.03222]
[1757709921217,0.63241399,116300.0,116290.0,0.94302]
[1757709921417,0.63241399,116300.0,116290.0,1.3624062]
[1757709922212,0.63241399,116300.0,116290.0,1.6124062]
[1757709922616,0.02794549,116300.0,116290.0,1.6124062]
[1757709922812,4e-05,116300.0,116290.0,1.6124062]
[1757709924111,0.00104,116300.0,116290.0,1.6124062]
[1757709924311,0.00104,116300.0,116290.0,2.4147662]
[1757709925117,0.00104,116300.0,116290.0,2.4146862]
[1757709926317,0.00104,116300.0,116290.0,2.43189398]
[1757709926815,0.00104,116300.0,116290.0,1.62961398]
[1757709927017,0.06826616,116310.0,116300.0,0.03549]
[1757709927218,0.81029394,116320.0,116300.0,1.3356762]
[1757709927521,0.81029394,116320.0,116310.0,0.8030162]
[1757709927522,0.85943023,116320.0,116310.0,0.8030162]
[1757709927721,0.85943023,116320.0,116310.0,1.3530162]
[1757709928417,0.85943023,116320.0,116310.0,1.3510162]
[1757709928913,0.86243023,116320.0,116310.0,1.3510162]
[1757709929120,0.86243023,116320.0,116310.0,1.3500162]
[1757709929820,0.94290458,116320.0,116310.0,0.93063]
[1757709930021,0.94490458,116320.0,116310.0,1.3500162]
[1757709931822,0.93171458,116320.0,116310.0,1.3569162]
[1757709933320,0.91040458,116320.0,116310.0,1.3569162]
[1757709933721,0.87408435,116320.0,116310.0,1.3569162]
[1757709934526,0.90182184,116320.0,116310.0,1.3569162]
[1757709934824,0.87408435,116320.0,116310.0,1.3569162]
[1757709935227,0.87408435,116320.0,116310.0,0.93753]
[1757709935419,0.89539435,116320.0,116310.0,1.74205]
[1757709935621,0.89539435,116320.0,116310.0,2.1614362]
[1757709935921,0.89539435,116320.0,116310.0,1.3569162]
[1757709936323,0.92312799,116320.0,116310.0,1.3569162]
[1757709936519,0.92312799,116320.0,116310.0,2.1611562]
[1757709936719,0.92312799,116320.0,116310.0,1.3569162]
[1757709936914,0.92312799,116320.0,116310.0,2.1611162]
[1757709938616,0.93631799,116320.0,116310.0,1.3500162]
[1757709942334,0.13451799,116320.0,116310.0,1.3500162]
[1757709942832,0.10001799,116320.0,116310.0,1.3569162]
[1757709945426,0.13070826,116320.0,116310.0,1.3569162]
[1757709945832,0.91148007,116330.0,116320.0,0.03222]
[1757709946131,0.03067579,116330.0,116320.0,1.3824062]
[1757709946331,1.80238,116350.0,116330.0,0.03222]
[1757709946633,2.25586,116350.0,116340.0,0.4556962]
[1757709946826,2.25586,116350.0,116340.0,1.3664962]
[1757709947020,2.30190015,116350.0,116340.0,1.3664962]
[1757709947223,0.50470015,116350.0,116340.0,0.94711]
[1757709947424,1.26474,116350.0,116340.0,1.3664962]
[1757709947619,0.94532666,116350.0,116340.0,1.3664962]
[1757709947935,0.94532666,116350.0,116340.0,1.3624962]
[1757709948133,0.11497666,116350.0,116340.0,1.3624962]
[1757709948439,0.12352778,116350.0,116340.0,1.3624962]
[1757709948733,0.11897666,116350.0,116340.0,1.3624962]
[1757709948923,0.12297666,116350.0,116340.0,1.3624962]
[1757709949428,0.12297666,116350.0,116340.0,0.94311]
[1757709949623,0.15736666,116350.0,116340.0,0.57283]
[1757709949828,0.11130106,116350.0,116340.0,0.9922162]
[1757709950135,0.15738303,116350.0,116340.0,0.9922162]
[1757709950329,0.11130106,116350.0,116340.0,0.9922162]
[1757709951032,0.15739582,116350.0,116340.0,0.9922162]
[1757709951232,0.16606509,116350.0,116340.0,1.0053062]
[1757709952331,0.11997033,116350.0,116340.0,1.0053062]
[1757709952926,0.16605858,116350.0,116340.0,1.0053062]
[1757709953735,0.16605858,116350.0,116340.0,0.58592]
[1757709953931,0.15313858,116350.0,116340.0,0.58592]
[1757709954139,0.15313858,116350.0,116340.0,1.0053062]
[1757709954534,0.15313858,116350.0,116340.0,0.58592]
[1757709954734,0.15313858,116350.0,116340.0,1.0053062]
[1757709955039,0.15313858,116350.0,116340.0,1.3661062]
[1757709955738,0.96449858,116350.0,116340.0,1.3661062]
[1757709957138,0.08558033,116350.0,116340.0,1.3661062]
[1757709957343,0.08558033,116350.0,116340.0,1.0053062]
[1757709957541,0.08558033,116350.0,116340.0,1.3661062]
[1757709957841,0.11276146,116350.0,116340.0,1.3661062]
[1757709958139,0.11276146,116350.0,116340.0,0.94672]
[1757709958140,0.14697146,116350.0,116340.0,0.94672]
[1757709958348,0.14697146,116350.0,116340.0,1.3661062]
[1757709960942,0.19305892,116350.0,116340.0,1.3661062]
[1757709961644,0.14697146,116350.0,116340.0,1.3661062]
[1757709961829,0.19006145,116350.0,116340.0,1.3661062]
[1757709962145,0.32585685,116350.0,116340.0,1.2162208]
[1757709962440,0.18606145,116350.0,116340.0,1.3560162]
[1757709964237,0.18506145,116350.0,116340.0,1.3570162]
[1757709964541,0.18506145,116350.0,116340.0,1.3701062]
[1757709964542,0.17236145,116350.0,116340.0,1.3701062]
[1757709965743,0.14518032,116350.0,116340.0,1.3701062]
[1757709965930,0.17237571,116350.0,116340.0,1.3701062]
[1757709966334,0.99149571,116350.0,116340.0,1.3701062]
[1757709966636,0.16370644,116350.0,116340.0,1.3701062]
[1757709966831,0.98278644,116350.0,116340.0,1.3701062]
[1757709967530,0.16370644,116350.0,116340.0,1.3701062]
[1757709968034,0.09610645,116350.0,116340.0,1.3701062]
[1757709968236,0.09610645,116350.0,116340.0,1.40884]
[1757709968638,0.09610645,116350.0,116340.0,1.8282262]
[1757709969034,0.09610645,116350.0,116340.0,2.5498262]
[1757709969236,0.09610645,116350.0,116340.0,2.13044]
[1757709969543,0.09611204,116350.0,116340.0,2.5498262]
[1757709969936,0.09611204,116350.0,116340.0,2.2702354]
[1757709970141,0.09611204,116350.0,116340.0,2.5498262]
[1757709970340,0.09611204,116350.0,116340.0,2.5488262]
[1757709970540,0.09611204,116350.0,116340.0,2.12644]
[1757709970741,0.09611204,116350.0,116340.0,2.4996337]
[1757709971639,0.09611204,116350.0,116340.0,2.68573055]
[1757709971835,0.09611204,116350.0,116340.0,2.12744]
[1757709972039,0.09611204,116350.0,116340.0,2.68573055]
[1757709972742,0.09611204,116350.0,116340.0,2.4996337]
[1757709973145,0.09611204,116350.0,116340.0,2.12744]
[1757709973445,0.09611204,116350.0,116340.0,2.4996337]
[1757709973836,0.09611204,116350.0,116340.0,2.5034337]
[1757709974638,0.09611204,116350.0,116340.0,1.6807137]
[1757709974837,0.09611204,116350.0,116340.0,1.49461685]
[1757709975143,0.09611204,116350.0,116340.0,1.6807137]
[1757709976436,0.09611204,116350.0,116340.0,1.30852]
[1757709976732,0.09611204,116350.0,116340.0,1.6807137]
[1757709979538,0.09611204,116350.0,116340.0,1.30852]
[1757709979734,0.09611204,116350.0,116340.0,1.6807137]
[1757709979937,0.09611204,116350.0,116340.0,1.30852]
[1757709980137,0.09611204,116350.0,116340.0,1.6807137]
[1757709983541,0.09617241,116350.0,116340.0,1.6807137]
[1757709987039,0.09617241,116350.0,116340.0,1.49461685]
[1757709987241,0.09617241,116350.0,116340.0,1.6807137]
[1757709987859,0.09617241,116350.0,116340.0,1.30852]
[1757709988150,0.09617241,116350.0,116340.0,0.9591137]
[1757709988349,0.11798241,116350.0,116340.0,1.3199137]
[1757709988749,0.11798241,116350.0,116340.0,1.13381685]
[1757709988955,0.11798241,116350.0,116340.0,1.3199137]
[1757709989246,0.11798241,116350.0,116340.0,0.94772]
[1757709989446,0.56669926,116350.0,116340.0,0.57383]
[1757709989646,1.38721926,116350.0,116340.0,0.75992685]
[1757709989846,1.20112241,116350.0,116340.0,0.551]
[1757709990051,1.60409604,116350.0,116340.0,0.551]
[1757709990247,1.41799919,116350.0,116340.0,0.001]
[1757709990447,1.27799233,116350.0,116340.0,0.001]
[1757709990656,1.2472124,116350.0,116340.0,0.02302]
[1757709990850,1.43330925,116350.0,116340.0,0.02302]
[1757709991054,1.43342625,116350.0,116340.0,0.001]
[1757709991356,1.46421711,116350.0,116340.0,0.001]
[1757709991952,1.27812026,116350.0,116340.0,0.02302]
[1757709992152,1.2473294,116350.0,116340.0,0.02302]
[1757709992451,1.46421716,116350.0,116340.0,0.001]
[1757709992849,1.82501716,116350.0,116340.0,0.001]
[1757709993044,1.82501716,116350.0,116340.0,0.20911685]
[1757709993253,1.64576031,116350.0,116340.0,0.20911685]
[1757709993854,1.59955332,116350.0,116340.0,0.02302]
[1757709994052,1.78565017,116350.0,116340.0,0.02302]
[1757709994256,1.59955332,116350.0,116340.0,0.02302]
[1757709994461,1.78565017,116350.0,116340.0,0.20911685]
[1757709995258,1.78565017,116350.0,116340.0,0.02302]
[1757709995654,1.59955332,116350.0,116340.0,0.02302]
[1757709995857,1.78565017,116350.0,116340.0,0.02302]
[1757709996267,1.78565017,116350.0,116340.0,0.001]
[1757709996452,1.59955332,116350.0,116340.0,0.001]
[1757709996654,1.78565017,116350.0,116340.0,0.001]
[1757709997356,1.59955332,116350.0,116340.0,0.001]
[1757709997760,1.78565017,116350.0,116340.0,0.001]
[1757709998256,1.75485926,116350.0,116340.0,0.001]
[1757709999262,1.50485926,116350.0,116340.0,0.001]
[1757710000360,1.31876241,116350.0,116340.0,0.001]
[1757710000559,1.50485926,116350.0,116340.0,0.001]
[1757710000762,1.31876241,116350.0,116340.0,0.001]
[1757710001067,1.53565017,116350.0,116340.0,0.001]
[1757710002560,1.34955332,116350.0,116340.0,0.001]
[1757710002865,1.53565017,116350.0,116340.0,0.001]
[1757710003469,1.34955332,116350.0,116340.0,0.001]
[1757710003766,1.53565017,116350.0,116340.0,0.18709685]
[1757710003967,1.53565017,116350.0,116340.0,0.001]
[1757710004164,1.53565017,116350.0,116340.0,0.18709685]
[1757710004364,0.52219332,116350.0,116340.0,0.20911685]
[1757710004668,1.35187332,116350.0,116340.0,0.20911685]
[1757710005168,1.32124241,116350.0,116340.0,0.20911685]
[1757710005676,0.49140241,116350.0,116340.0,0.20911685]
[1757710005968,0.96060241,116350.0,116340.0,0.7560137]
[1757710006770,0.96032241,116350.0,116340.0,0.7560137]
[1757710007070,0.96032241,116350.0,116340.0,1.2560137]
[1757710008057,0.11798241,116350.0,116340.0,1.2697537]
[1757710008462,0.11798241,116350.0,116340.0,1.70585055]
[1757710008668,0.94690241,116350.0,116340.0,1.5197537]
[1757710010170,0.94690241,116350.0,116340.0,1.70585055]
[1757710010668,0.09617241,116350.0,116340.0,1.70585055]
[1757710010870,0.92405241,116350.0,116340.0,1.70585055]
[1757710011274,0.92405241,116350.0,116340.0,1.14756]
[1757710011570,0.92405241,116350.0,116340.0,1.70585055]
[1757710012162,0.92405241,116350.0,116340.0,1.14756]
[1757710012362,0.92405241,116350.0,116340.0,1.70585055]
[1757710012965,0.89679106,116350.0,116340.0,1.70585055]
[1757710013763,0.06891106,116350.0,116340.0,1.70585055]
[1757710014069,0.89835106,116350.0,116340.0,1.5197537]
[1757710015471,0.89835106,116350.0,116340.0,1.70585055]
[1757710022082,0.06891106,116350.0,116340.0,1.14756]
[1757710022272,0.06891106,116350.0,116340.0,1.70585055]
[1757710022672,0.89487106,116350.0,116340.0,1.70585055]
[1757710024285,0.06891106,116350.0,116340.0,1.70585055]
[1757710025379,0.06891106,116350.0,116340.0,2.53137055]
[1757710026186,0.06891106,116350.0,116340.0,1.70585055]
[1757710027089,0.02168,116380.0,116370.0,0.4077337]
[1757710027283,0.11894157,116380.0,116370.0,0.9777337]
[1757710027490,0.02743594,116380.0,116370.0,1.52463055]
[1757710027788,0.02743594,116380.0,116370.0,2.34999055]
[1757710028185,0.02743594,116380.0,116370.0,2.1638937]
[1757710028392,0.02943594,116380.0,116370.0,2.1638937]
[1757710029291,0.03143594,116380.0,116370.0,2.1638937]
[1757710030086,0.03143594,116380.0,116370.0,1.3385337]
[1757710030389,0.03043594,116380.0,116370.0,2.1637737]
[1757710030885,0.02843594,116380.0,116370.0,2.1637737]
[1757710031090,0.09812128,116380.0,116370.0,2.1637737]
[1757710032592,0.09812128,116380.0,116370.0,2.21004967]
[1757710034593,0.09812128,116380.0,116370.0,1.38480967]
[1757710034791,0.09812128,116380.0,116370.0,2.20980967]
[1757710036094,0.09812128,116380.0,116370.0,2.20916967]
[1757710036895,0.07068534,116380.0,116370.0,2.20916967]
[1757710037394,0.002,116380.0,116370.0,2.20916967]
[1757710037993,0.002,116380.0,116370.0,2.45916967]
[1757710038290,0.002,116380.0,116370.0,2.45896967]
[1757710038495,0.002,116380.0,116370.0,1.63480967]
[1757710038696,0.002,116380.0,116370.0,2.45884967]
[1757710040095,0.002,116380.0,116370.0,1.63480967]
[1757710040295,0.02943876,116380.0,116370.0,2.45824967]
[1757710040597,0.02943876,116380.0,116370.0,1.63480967]
[1757710040990,0.002,116380.0,116370.0,2.45848967]
[1757710041191,0.002,116380.0,116370.0,1.63480967]
[1757710041492,0.002,116380.0,116370.0,2.45884967]
[1757710041794,0.002,116380.0,116370.0,1.63480967]
[1757710042199,0.002,116380.0,116370.0,2.45876967]
[1757710042394,0.0294299,116380.0,116370.0,1.63480967]
[1757710042592,0.0294299,116380.0,116370.0,2.45876967]
[1757710043293,0.0294299,116380.0,116370.0,1.63480967]
[1757710043495,0.0294299,116380.0,116370.0,2.45848967]
[1757710043899,0.0294699,116380.0,116370.0,2.45848967]
[1757710044090,0.0294699,116380.0,116370.0,1.63480967]
[1757710044300,0.0294699,116380.0,116370.0,2.45848967]
[1757710046993,0.0294699,116380.0,116370.0,1.63480967]
[1757710047302,0.0294699,116380.0,116370.0,2.45768967]
[1757710048203,0.0507799,116380.0,116370.0,2.20732967]
[1757710048403,0.0294699,116380.0,116370.0,2.20732967]
[1757710050295,0.0294699,116380.0,116370.0,2.20812967]
[1757710051603,0.0294699,116380.0,116370.0,0.96634]
[1757710051901,0.0294699,116380.0,116370.0,2.20744967]
[1757710053505,0.0294699,116380.0,116370.0,2.20764967]
[1757710054210,0.0294699,116380.0,116370.0,1.78918]
[1757710054408,0.0294699,116380.0,116370.0,2.20764967]
[1757710056411,0.0294699,116380.0,116370.0,1.38480967]
[1757710056702,0.2926699,116380.0,116370.0,2.19437967]
[1757710057301,0.34477081,116380.0,116370.0,0.59243]
[1757710057512,0.34477081,116380.0,116370.0,1.01089967]
[1757710057699,0.36018689,116380.0,116370.0,1.01089967]
[1757710058712,0.39103695,116380.0,116370.0,1.01089967]
[1757710059398,0.39103695,116380.0,116370.0,0.87140978]
[1757710059603,0.14103695,116380.0,116370.0,0.87140978]
[1757710059804,0.47098689,116380.0,116370.0,0.87140978]
[1757710060004,0.47098689,116380.0,116370.0,1.01089967]
[1757710060412,0.47098689,116380.0,116370.0,0.87140978]
[1757710060715,0.47098689,116380.0,116370.0,0.02243]
[1757710060908,0.03451,116370.0,116360.0,0.38352]
[1757710061213,0.0619399,116370.0,116360.0,1.19249978]
[1757710061413,0.0619399,116370.0,116360.0,1.33198967]
[1757710062310,0.0629399,116370.0,116360.0,0.97118967]
[1757710064012,0.0629399,116370.0,116360.0,0.55272]
[1757710064213,0.0497399,116370.0,116360.0,0.98466967]
[1757710064715,0.0284299,116370.0,116360.0,1.34546967]
[1757710067018,0.0284299,116370.0,116360.0,0.927]
[1757710067222,0.0284299,116370.0,116360.0,1.34546967]
[1757710069220,0.0284699,116370.0,116360.0,1.34546967]
[1757710070316,0.0284699,116370.0,116360.0,1.06648989]
[1757710070617,0.0284699,116370.0,116360.0,1.34546967]
[1757710072115,0.0284699,116370.0,116360.0,2.16582967]
[1757710075019,0.0421399,116370.0,116360.0,2.16582967]
[1757710075317,0.0421399,116370.0,116360.0,1.34546967]
[1757710075916,0.0633899,116370.0,116360.0,0.91352]
[1757710076116,0.59236968,116370.0,116360.0,0.55272]
[1757710076320,0.59236968,116370.0,116360.0,0.66948989]
[1757710076621,0.59236968,116370.0,116360.0,0.13948989]
[1757710076817,0.3133899,116370.0,116360.0,0.13948989]
[1757710077017,1.41160968,116370.0,116360.0,0.13948989]
[1757710077421,1.27191979,116370.0,116360.0,0.13948989]
[1757710077617,1.27191979,116370.0,116360.0,0.16216989]
[1757710077816,0.45287979,116370.0,116360.0,0.16216989]
[1757710078013,1.27175979,116370.0,116360.0,0.92165978]
[1757710078216,1.27175979,116370.0,116360.0,0.78216989]
[1757710078217,1.1322699,116370.0,116360.0,0.78216989]
[1757710078417,1.27163979,116370.0,116360.0,0.78216989]
[1757710078723,1.27163979,116370.0,116360.0,0.92165978]
[1757710079024,1.63243979,116370.0,116360.0,0.92165978]
[1757710079423,1.66329546,116370.0,116360.0,0.92165978]
[1757710079623,1.66329546,116370.0,116360.0,0.78216989]
[1757710080923,1.52380557,116370.0,116360.0,0.78216989]
[1757710081226,1.63243979,116370.0,116360.0,0.78216989]
[1757710081426,1.63243979,116370.0,116360.0,0.64268]
[1757710081728,1.63243979,116370.0,116360.0,0.78216989]
[1757710081927,1.63243979,116370.0,116360.0,0.64268]
[1757710082226,1.63243979,116370.0,116360.0,0.78216989]
[1757710082621,1.63243979,116370.0,116360.0,0.92165978]
[1757710082819,1.1321499,116370.0,116360.0,0.64268]
[1757710083017,1.1321499,116370.0,116360.0,0.92165978]
[1757710083018,1.27163979,116370.0,116360.0,0.92165978]
[1757710083223,0.3133899,116370.0,116360.0,0.92165978]
[1757710083425,1.27071979,116370.0,116360.0,0.92165978]
[1757710083624,1.1312299,116370.0,116360.0,0.92165978]
[1757710083917,0.45287979,116370.0,116360.0,0.78216989]
[1757710084125,1.27047979,116370.0,116360.0,0.92165978]
[1757710084321,1.27047979,116370.0,116360.0,0.78216989]
[1757710084524,1.27047979,116370.0,116360.0,0.92165978]
[1757710084726,1.1309899,116370.0,116360.0,0.92165978]
[1757710084928,1.27047979,116370.0,116360.0,0.92165978]
[1757710085327,1.27047979,116370.0,116360.0,0.64268]
[1757710085528,1.27047979,116370.0,116360.0,0.92165978]
[1757710087527,1.63127979,116370.0,116360.0,0.92165978]
[1757710087832,0.6741899,116370.0,116360.0,0.92165978]
[1757710088129,1.26999979,116370.0,116360.0,0.92165978]
[1757710088627,1.26999979,116370.0,116360.0,0.64268]
[1757710088820,1.26999979,116370.0,116360.0,0.92165978]
[1757710089920,0.45287979,116370.0,116360.0,0.92165978]
[1757710090120,1.26943979,116370.0,116360.0,0.92165978]
[1757710091830,1.62895979,116370.0,116360.0,0.92165978]
[1757710092022,1.62895979,116370.0,116360.0,0.64268]
[1757710092222,1.62895979,116370.0,116360.0,0.92165978]
[1757710092419,1.4894699,116370.0,116360.0,0.82877118]
[1757710092624,1.1286699,116370.0,116360.0,0.82877118]
[1757710092930,1.1286699,116370.0,116360.0,0.64268]
[1757710093128,1.1286699,116370.0,116360.0,0.82877118]
[1757710093324,0.3133899,116370.0,116360.0,0.82877118]
[1757710093629,1.1280699,116370.0,116360.0,0.82877118]
[1757710093831,1.1280299,116370.0,116360.0,0.82877118]
[1757710094832,1.4888299,116370.0,116360.0,0.82877118]
[1757710095031,1.1280299,116370.0,116360.0,0.82877118]
[1757710096030,1.1280299,116370.0,116360.0,0.64268]
[1757710096230,1.1280299,116370.0,116360.0,0.82877118]
[1757710098427,1.4888299,116370.0,116360.0,0.82877118]
[1757710098634,0.6741899,116370.0,116360.0,0.82877118]
[1757710098931,1.15816557,116370.0,116360.0,0.82877118]
[1757710099135,0.34424557,116370.0,116360.0,0.64268]
[1757710099436,1.15784557,116370.0,116360.0,0.82877118]
[1757710100134,1.1269899,116370.0,116360.0,0.82877118]
[1757710100323,1.15784557,116370.0,116360.0,0.82877118]
[1757710102034,1.51864557,116370.0,116360.0,0.82877118]
[1757710102235,1.15784557,116370.0,116360.0,0.82877118]
[1757710102429,0.34424557,116370.0,116360.0,0.82877118]
[1757710102634,0.08057557,116370.0,116360.0,1.63919236]
[1757710102936,0.8627199,116370.0,116360.0,1.63919236]
[1757710103235,0.8425899,116370.0,116360.0,1.63919236]
[1757710104237,0.8425899,116370.0,116360.0,1.26701]
[1757710104431,0.8425899,116370.0,116360.0,1.63919236]
[1757710106125,0.0284699,116370.0,116360.0,1.82528354]
[1757710106435,0.0284699,116370.0,116360.0,0.90621]
[1757710106629,0.0284699,116370.0,116360.0,1.72333]
[1757710106826,0.0284699,116370.0,116360.0,2.28160354]
[1757710108343,4e-05,116380.0,116370.0,0.03607]
[1757710108540,4e-05,116380.0,116370.0,0.92825236]
[1757710108741,4e-05,116380.0,116370.0,0.94567441]
[1757710109140,4e-05,116380.0,116370.0,1.29509205]
[1757710109335,4e-05,116380.0,116370.0,2.10336559]
[1757710109836,0.00204,116380.0,116370.0,1.54509205]
[1757710110041,0.00204,116380.0,116370.0,2.73783441]
[1757710111242,0.00204,116380.0,116370.0,2.92392559]
[1757710111644,0.00204,116380.0,116370.0,2.73783441]
[1757710111845,0.00204,116380.0,116370.0,2.73795441]
[1757710112440,0.00204,116380.0,116370.0,2.36577205]
[1757710112641,0.00204,116380.0,116370.0,1.91727441]
[1757710112842,0.00204,116380.0,116370.0,2.73899441]
[1757710115347,0.00104,116380.0,116370.0,1.91727441]
[1757710115554,0.00104,116380.0,116370.0,2.73863441]
[1757710116548,4e-05,116380.0,116370.0,2.73863441]
[1757710117745,4e-05,116380.0,116370.0,1.91727441]
[1757710117948,4e-05,116380.0,116370.0,2.73851441]
[1757710118350,4e-05,116380.0,116370.0,1.91727441]
[1757710119059,4e-05,116380.0,116370.0,2.73807441]
[1757710119258,4e-05,116380.0,116370.0,1.66727441]
[1757710119657,4e-05,116380.0,116370.0,2.48787441]
[1757710121159,4e-05,116380.0,116370.0,2.48739441]
[1757710122460,4e-05,116380.0,116370.0,2.48711441]
[1757710124057,4e-05,116380.0,116370.0,1.66727441]
[1757710124268,0.01395,116380.0,116370.0,1.29509205]
[1757710124563,4e-05,116380.0,116370.0,1.66727441]
[1757710125061,4e-05,116380.0,116370.0,1.29509205]
[1757710125361,4e-05,116380.0,116370.0,1.66727441]
[1757710126856,0.29024091,116380.0,116370.0,1.29509205]
[1757710127056,0.26295,116380.0,116370.0,1.10685323]
[1757710127255,0.2902404,116380.0,116370.0,1.10685323]
[1757710129767,0.2902404,116380.0,116370.0,0.92076205]
[1757710129962,0.87854709,116380.0,116370.0,0.72863118]
[1757710130163,0.69245591,116380.0,116370.0,0.54254]
[1757710130665,0.69245591,116380.0,116370.0,0.72863118]
[1757710131265,0.69245591,116380.0,116370.0,0.54254]
[1757710131567,0.69245591,116380.0,116370.0,0.72863118]
[1757710131959,0.69245591,116380.0,116370.0,0.54254]
[1757710132156,0.69245591,116380.0,116370.0,0.72863118]
[1757710132355,1.24738591,116380.0,116370.0,0.92818236]